[Event "Titled Tuesday Blitz May 30 Early 2023"]
[White "Kuznetsov, Mikhail"]
[Black "rionelG"]
[WhiteFideId "4117190"]
[WhiteElo "1981"]
[BlackElo "2148"]
[Result "0-1"]
[Round "10"]
[TimeControl "180+2"]
[Date "2023.05.30"]
[WhiteClock "0:00:13"]
[BlackClock "0:00:11"]

1. d4 {[%clk 0:03:00]}  Nf6 {[%clk 0:03:00]} 2. Nf3 {[%clk 0:02:59]}  g6 {[%clk 0:03:00]} 3. g3 {[%clk 0:02:59]}  Bg7 {[%clk 0:03:01]} 4. Bg2 {[%clk 0:03:00]}  O-O {[%clk 0:03:01]} 5. O-O {[%clk 0:03:00]}  d6 {[%clk 0:03:02]} 6. c4 {[%clk 0:03:01]}  Nc6 {[%clk 0:03:01]} 7. Nc3 {[%clk 0:02:56]}  a6 {[%clk 0:03:01]} 8. b3 {[%clk 0:02:56]}  Rb8 {[%clk 0:03:00]} 9. Bb2 {[%clk 0:02:56]}  b5 {[%clk 0:03:00]} 10. cxb5 {[%clk 0:02:57]}  axb5 {[%clk 0:03:00]} 11. Rc1 {[%clk 0:02:58]}  b4 {[%clk 0:02:54]} 12. Na4 {[%clk 0:02:58]}  Na5 {[%clk 0:02:54]} 13. e3 {[%clk 0:02:58]}  Nd7 {[%clk 0:02:41]} 14. Nd2 {[%clk 0:02:55]}  c5 {[%clk 0:02:31]} 15. dxc5 {[%clk 0:02:53]}  Bxb2 {[%clk 0:02:30]} 16. Nxb2 {[%clk 0:02:48]}  Nxc5 {[%clk 0:02:30]} 17. Nbc4 {[%clk 0:02:47]}  Bb7 {[%clk 0:02:22]} 18. Bxb7 {[%clk 0:02:41]}  Rxb7 {[%clk 0:02:20]} 19. Qe2 {[%clk 0:02:41]}  Ra7 {[%clk 0:02:16]} 20. Rfd1 {[%clk 0:02:38]}  Nxc4 {[%clk 0:02:08]} 21. Nxc4 {[%clk 0:02:39]}  Qa8 {[%clk 0:02:03]} 22. Rc2 {[%clk 0:02:25]}  Qb7 {[%clk 0:02:03]} 23. f3 {[%clk 0:02:23]}  Rfa8 {[%clk 0:01:37]} 24. e4 {[%clk 0:02:21]}  Ra6 {[%clk 0:01:37]} 25. Ne3 {[%clk 0:02:15]}  Qa7 {[%clk 0:01:37]} 26. Rdd2 {[%clk 0:02:13]}  e5 {[%clk 0:01:31]} 27. Kg2 {[%clk 0:02:12]}  Ne6 {[%clk 0:01:30]} 28. Nd5 {[%clk 0:01:55]}  Nd4 {[%clk 0:01:25]} 29. Rxd4 {[%clk 0:01:49]}  exd4 {[%clk 0:00:48]} 30. Nxb4 {[%clk 0:01:49]}  Ra5 {[%clk 0:00:39]} 31. Nc6 {[%clk 0:01:48]}  Qa6 {[%clk 0:00:31]} 32. Nxa5 {[%clk 0:01:47]}  d3 {[%clk 0:00:31]} 33. Qd2 {[%clk 0:01:23]}  dxc2 {[%clk 0:00:31]} 34. Nc4 {[%clk 0:01:01]}  Qxa2 {[%clk 0:00:29]} 35. Kh3 {[%clk 0:01:01]}  Qb1 {[%clk 0:00:28]} 36. Qd5 {[%clk 0:00:59]}  Rf8 {[%clk 0:00:24]} 37. Na3 {[%clk 0:00:42]}  c1=Q {[%clk 0:00:19]} 38. Nxb1 {[%clk 0:00:42]}  Qxb1 {[%clk 0:00:20]} 39. Kg4 {[%clk 0:00:41]}  Rb8 {[%clk 0:00:20]} 40. Kg5 {[%clk 0:00:40]}  Qxb3 {[%clk 0:00:20]} 41. Qxd6 {[%clk 0:00:37]}  Qb5+ {[%clk 0:00:19]} 42. e5 {[%clk 0:00:35]}  Re8 {[%clk 0:00:17]} 43. f4 {[%clk 0:00:34]}  Qe2 {[%clk 0:00:15]} 44. g4 {[%clk 0:00:24]}  Qxh2 {[%clk 0:00:14]} 45. f5 {[%clk 0:00:15]}  h6+ {[%clk 0:00:10]} 46. Kf6 {[%clk 0:00:14]}  Qh4+ {[%clk 0:00:11]} 47. g5 {[%clk 0:00:13]}  Qxg5# {[%clk 0:00:11]} 0-1


[Site "https://www.chess.com"]

[Event "Titled Tuesday Blitz May 30 Early 2023"]
[White "Alexikov, Alexander"]
[Black "Weishaeutel, Moritz"]
[WhiteFideId "14103958"]
[BlackFideId "12967300"]
[WhiteElo "2186"]
[BlackElo "2301"]
[Result "1/2-1/2"]
[Round "10"]
[TimeControl "180+2"]
[Date "2023.05.30"]
[WhiteClock "0:00:37"]
[BlackClock "0:00:25"]

1. e4 {[%clk 0:03:00]}  e5 {[%clk 0:02:59]} 2. Nf3 {[%clk 0:03:00]}  Nf6 {[%clk 0:03:00]} 3. d4 {[%clk 0:02:58]}  Nxe4 {[%clk 0:03:00]} 4. Bd3 {[%clk 0:02:56]}  d5 {[%clk 0:03:00]} 5. Nxe5 {[%clk 0:02:55]}  Nd7 {[%clk 0:03:01]} 6. Nxd7 {[%clk 0:02:55]}  Bxd7 {[%clk 0:03:02]} 7. O-O {[%clk 0:02:54]}  Bd6 {[%clk 0:03:02]} 8. Nc3 {[%clk 0:02:51]}  Nxc3 {[%clk 0:03:00]} 9. bxc3 {[%clk 0:02:50]}  O-O {[%clk 0:03:00]} 10. Qh5 {[%clk 0:02:48]}  g6 {[%clk 0:02:55]} 11. Qxd5 {[%clk 0:02:48]}  Bc6 {[%clk 0:02:56]} 12. Qg5 {[%clk 0:02:46]}  Qd7 {[%clk 0:02:51]} 13. Bf4 {[%clk 0:02:41]}  f6 {[%clk 0:02:21]} 14. Qg3 {[%clk 0:02:40]}  Bxf4 {[%clk 0:02:15]} 15. Qxf4 {[%clk 0:02:39]}  Rae8 {[%clk 0:02:16]} 16. Bc4+ {[%clk 0:02:31]}  Kg7 {[%clk 0:02:15]} 17. Rfe1 {[%clk 0:02:29]}  Re7 {[%clk 0:01:58]} 18. Re3 {[%clk 0:02:19]}  Rxe3 {[%clk 0:01:56]} 19. fxe3 {[%clk 0:02:17]}  Re8 {[%clk 0:01:53]} 20. Rf1 {[%clk 0:02:16]}  Qe7 {[%clk 0:01:53]} 21. Kh1 {[%clk 0:02:13]}  f5 {[%clk 0:01:50]} 22. Re1 {[%clk 0:01:59]}  Qe4 {[%clk 0:01:30]} 23. Qxe4 {[%clk 0:01:57]}  Bxe4 {[%clk 0:01:31]} 24. Bd3 {[%clk 0:01:57]}  Bc6 {[%clk 0:01:28]} 25. c4 {[%clk 0:01:54]}  f4 {[%clk 0:01:23]} 26. e4 {[%clk 0:01:53]}  g5 {[%clk 0:01:09]} 27. Kg1 {[%clk 0:01:49]}  Rd8 {[%clk 0:01:06]} 28. d5 {[%clk 0:01:42]}  Ba4 {[%clk 0:01:06]} 29. e5 {[%clk 0:01:41]}  b5 {[%clk 0:00:54]} 30. Kf2 {[%clk 0:01:33]}  bxc4 {[%clk 0:00:53]} 31. Bxc4 {[%clk 0:01:32]}  Bxc2 {[%clk 0:00:53]} 32. Kf3 {[%clk 0:01:26]}  Bf5 {[%clk 0:00:47]} 33. h4 {[%clk 0:01:19]}  h6 {[%clk 0:00:45]} 34. hxg5 {[%clk 0:01:19]}  hxg5 {[%clk 0:00:46]} 35. g3 {[%clk 0:01:18]}  fxg3 {[%clk 0:00:45]} 36. Kxg3 {[%clk 0:01:18]}  Re8 {[%clk 0:00:41]} 37. a4 {[%clk 0:01:10]}  a5 {[%clk 0:00:36]} 38. Bb5 {[%clk 0:01:07]}  Re7 {[%clk 0:00:36]} 39. Bc6 {[%clk 0:01:05]}  Kg6 {[%clk 0:00:26]} 40. Bb5 {[%clk 0:01:02]}  Bd7 {[%clk 0:00:25]} 41. Bxd7 {[%clk 0:00:54]}  Rxd7 {[%clk 0:00:25]} 42. e6 {[%clk 0:00:52]}  Re7 {[%clk 0:00:24]} 43. Rc1 {[%clk 0:00:51]}  Kf6 {[%clk 0:00:17]} 44. Rf1+ {[%clk 0:00:47]}  Ke5 {[%clk 0:00:17]} 45. Rf7 {[%clk 0:00:47]}  Kd6 {[%clk 0:00:13]} 46. Kg4 {[%clk 0:00:47]}  c6 {[%clk 0:00:10]} 47. dxc6 {[%clk 0:00:37]}  Kxe6 {[%clk 0:00:10]} 48. Rxe7+ {[%clk 0:00:36]}  Kxe7 {[%clk 0:00:10]} 49. Kxg5 {[%clk 0:00:36]}  Kd6 {[%clk 0:00:11]} 50. Kf4 {[%clk 0:00:36]}  Kxc6 {[%clk 0:00:11]} 51. Ke4 {[%clk 0:00:37]}  Kc5 {[%clk 0:00:12]} 52. Kd3 {[%clk 0:00:37]}  Kb4 {[%clk 0:00:13]} 53. Kc2 {[%clk 0:00:36]}  Kxa4 {[%clk 0:00:14]} 54. Kb2 {[%clk 0:00:36]}  Kb4 {[%clk 0:00:15]} 55. Ka2 {[%clk 0:00:36]}  Ka4 {[%clk 0:00:15]} 56. Kb2 {[%clk 0:00:36]}  Kb5 {[%clk 0:00:16]} 57. Ka2 {[%clk 0:00:36]}  a4 {[%clk 0:00:17]} 58. Kb2 {[%clk 0:00:36]}  Ka5 {[%clk 0:00:18]} 59. Ka2 {[%clk 0:00:36]}  Kb4 {[%clk 0:00:19]} 60. Kb2 {[%clk 0:00:36]}  a3+ {[%clk 0:00:20]} 61. Ka2 {[%clk 0:00:36]}  Ka4 {[%clk 0:00:21]} 62. Ka1 {[%clk 0:00:36]}  Kb3 {[%clk 0:00:22]} 63. Kb1 {[%clk 0:00:37]}  Kc3 {[%clk 0:00:22]} 64. Ka1 {[%clk 0:00:37]}  Kb4 {[%clk 0:00:23]} 65. Kb1 {[%clk 0:00:37]}  Kb3 {[%clk 0:00:24]} 66. Ka1 {[%clk 0:00:37]}  a2 {[%clk 0:00:25]} 1/2-1/2


[Site "https://www.chess.com"]

[Event "Titled Tuesday Blitz May 30 Early 2023"]
[White "KorolDimitriy75"]
[Black "Ambartsumova, Karina"]
[BlackFideId "4166299"]
[WhiteElo "2412"]
[BlackElo "2240"]
[Result "1/2-1/2"]
[Round "10"]
[TimeControl "180+2"]
[Date "2023.05.30"]
[WhiteClock "0:00:06"]
[BlackClock "0:00:30"]

1. d4 {[%clk 0:03:00]}  Nf6 {[%clk 0:03:00]} 2. c4 {[%clk 0:03:01]}  g6 {[%clk 0:03:00]} 3. Nc3 {[%clk 0:03:00]}  Bg7 {[%clk 0:03:00]} 4. e4 {[%clk 0:03:01]}  O-O {[%clk 0:03:01]} 5. Nf3 {[%clk 0:03:01]}  d6 {[%clk 0:03:02]} 6. Be2 {[%clk 0:03:01]}  a6 {[%clk 0:03:02]} 7. O-O {[%clk 0:02:59]}  c6 {[%clk 0:02:57]} 8. a4 {[%clk 0:02:56]}  a5 {[%clk 0:02:54]} 9. Re1 {[%clk 0:02:54]}  Na6 {[%clk 0:02:54]} 10. Bg5 {[%clk 0:02:44]}  h6 {[%clk 0:02:50]} 11. Bh4 {[%clk 0:02:44]}  Nb4 {[%clk 0:02:48]} 12. Rc1 {[%clk 0:02:40]}  Nd7 {[%clk 0:02:37]} 13. h3 {[%clk 0:02:29]}  Re8 {[%clk 0:02:32]} 14. Qd2 {[%clk 0:02:27]}  Qc7 {[%clk 0:02:24]} 15. Bf1 {[%clk 0:02:16]}  e5 {[%clk 0:02:18]} 16. d5 {[%clk 0:02:10]}  Nc5 {[%clk 0:02:17]} 17. Rcd1 {[%clk 0:01:51]}  Nb3 {[%clk 0:01:58]} 18. Qe2 {[%clk 0:01:34]}  f5 {[%clk 0:01:52]} 19. exf5 {[%clk 0:00:37]}  gxf5 {[%clk 0:01:41]} 20. Nd2 {[%clk 0:00:35]}  Nd4 {[%clk 0:01:34]} 21. Qh5 {[%clk 0:00:34]}  Nbc2 {[%clk 0:01:28]} 22. Qxe8+ {[%clk 0:00:32]}  Kh7 {[%clk 0:01:20]} 23. Bd8 {[%clk 0:00:28]}  Qd7 {[%clk 0:01:07]} 24. Qxd7 {[%clk 0:00:27]}  Bxd7 {[%clk 0:01:07]} 25. Be7 {[%clk 0:00:27]}  Nxe1 {[%clk 0:01:00]} 26. Rxe1 {[%clk 0:00:28]}  Bf8 {[%clk 0:01:00]} 27. Bxf8 {[%clk 0:00:26]}  Rxf8 {[%clk 0:01:01]} 28. Nf3 {[%clk 0:00:22]}  Nc2 {[%clk 0:00:54]} 29. Rd1 {[%clk 0:00:21]}  e4 {[%clk 0:00:54]} 30. Nd4 {[%clk 0:00:20]}  Nb4 {[%clk 0:00:54]} 31. dxc6 {[%clk 0:00:16]}  bxc6 {[%clk 0:00:55]} 32. Nde2 {[%clk 0:00:16]}  Rf6 {[%clk 0:00:55]} 33. Nf4 {[%clk 0:00:15]}  Kg8 {[%clk 0:00:54]} 34. g3 {[%clk 0:00:15]}  Kf8 {[%clk 0:00:53]} 35. Rd2 {[%clk 0:00:16]}  Ke7 {[%clk 0:00:53]} 36. h4 {[%clk 0:00:16]}  Rf7 {[%clk 0:00:47]} 37. Be2 {[%clk 0:00:16]}  Rg7 {[%clk 0:00:47]} 38. Kh2 {[%clk 0:00:16]}  Rg8 {[%clk 0:00:46]} 39. Bh5 {[%clk 0:00:15]}  Rb8 {[%clk 0:00:45]} 40. Ng6+ {[%clk 0:00:15]}  Ke6 {[%clk 0:00:45]} 41. Ne2 {[%clk 0:00:13]}  d5 {[%clk 0:00:40]} 42. Ngf4+ {[%clk 0:00:11]}  Kd6 {[%clk 0:00:40]} 43. cxd5 {[%clk 0:00:08]}  cxd5 {[%clk 0:00:41]} 44. Nd4 {[%clk 0:00:09]}  Bxa4 {[%clk 0:00:37]} 45. Nxf5+ {[%clk 0:00:07]}  Ke5 {[%clk 0:00:37]} 46. Nd4 {[%clk 0:00:06]}  Rc8 {[%clk 0:00:31]} 47. Ng6+ {[%clk 0:00:06]}  Kf6 {[%clk 0:00:30]} 48. Nf4 {[%clk 0:00:05]}  Ke5 {[%clk 0:00:30]} 49. Ng6+ {[%clk 0:00:05]}  Kf6 {[%clk 0:00:30]} 50. Nf4 {[%clk 0:00:06]}  Ke5 {[%clk 0:00:30]} 1/2-1/2


[Site "https://www.chess.com"]

[Event "Titled Tuesday Blitz May 30 Early 2023"]
[White "Matveeva, Olga"]
[Black "Jegorovas, Aleksandras"]
[WhiteFideId "24107018"]
[BlackFideId "12801950"]
[WhiteElo "2009"]
[BlackElo "2247"]
[Result "1-0"]
[Round "10"]
[TimeControl "180+2"]
[Date "2023.05.30"]
[WhiteClock "0:01:05"]
[BlackClock "0:00:45"]

1. d4 {[%clk 0:03:00]}  Nf6 {[%clk 0:02:55]} 2. c4 {[%clk 0:03:00]}  e6 {[%clk 0:02:55]} 3. g3 {[%clk 0:03:01]}  d5 {[%clk 0:02:54]} 4. Nf3 {[%clk 0:03:00]}  Be7 {[%clk 0:02:51]} 5. Bg2 {[%clk 0:03:00]}  O-O {[%clk 0:02:50]} 6. O-O {[%clk 0:02:59]}  dxc4 {[%clk 0:02:48]} 7. Qc2 {[%clk 0:02:58]}  b6 {[%clk 0:02:47]} 8. Nbd2 {[%clk 0:02:44]}  Bb7 {[%clk 0:02:39]} 9. Nxc4 {[%clk 0:02:43]}  Nbd7 {[%clk 0:02:38]} 10. Rd1 {[%clk 0:02:41]}  Rc8 {[%clk 0:02:27]} 11. Qa4 {[%clk 0:02:37]}  a6 {[%clk 0:02:24]} 12. Nce5 {[%clk 0:02:34]}  b5 {[%clk 0:02:21]} 13. Qc2 {[%clk 0:02:15]}  c5 {[%clk 0:02:14]} 14. Nxd7 {[%clk 0:02:10]}  Nxd7 {[%clk 0:02:05]} 15. Ng5 {[%clk 0:02:07]}  Bxg5 {[%clk 0:02:00]} 16. Bxb7 {[%clk 0:02:07]}  Rc7 {[%clk 0:01:54]} 17. Bxg5 {[%clk 0:01:55]}  Qxg5 {[%clk 0:01:54]} 18. Bg2 {[%clk 0:01:54]}  c4 {[%clk 0:01:48]} 19. d5 {[%clk 0:01:51]}  exd5 {[%clk 0:01:42]} 20. Rxd5 {[%clk 0:01:52]}  Qe7 {[%clk 0:01:40]} 21. Rad1 {[%clk 0:01:50]}  Nf6 {[%clk 0:01:40]} 22. Rd6 {[%clk 0:01:47]}  a5 {[%clk 0:01:37]} 23. Qf5 {[%clk 0:01:43]}  Qxe2 {[%clk 0:01:31]} 24. Qxb5 {[%clk 0:01:35]}  h5 {[%clk 0:01:17]} 25. Qxa5 {[%clk 0:01:32]}  Re7 {[%clk 0:01:01]} 26. Rd8 {[%clk 0:01:10]}  Rxd8 {[%clk 0:01:01]} 27. Rxd8+ {[%clk 0:01:08]}  Kh7 {[%clk 0:00:45]} 28. Qf5+ {[%clk 0:01:05]} 1-0


[Site "https://www.chess.com"]

[Event "Titled Tuesday Blitz May 30 Early 2023"]
[White "Srdanovic, Jovana"]
[Black "Ziatdinov, Raset"]
[WhiteFideId "954810"]
[BlackFideId "2015323"]
[WhiteElo "2169"]
[BlackElo "2220"]
[Result "1-0"]
[Round "10"]
[TimeControl "180+2"]
[Date "2023.05.30"]
[WhiteClock "0:01:37"]
[BlackClock "0:02:11"]

1. d4 {[%clk 0:03:00]}  Nf6 {[%clk 0:02:57]} 2. c4 {[%clk 0:03:01]}  g6 {[%clk 0:02:58]} 3. Nc3 {[%clk 0:03:01]}  Bg7 {[%clk 0:02:58]} 4. e4 {[%clk 0:03:01]}  d6 {[%clk 0:02:58]} 5. h3 {[%clk 0:03:02]}  O-O {[%clk 0:02:58]} 6. Be3 {[%clk 0:03:02]}  Nc6 {[%clk 0:02:59]} 7. Bd3 {[%clk 0:02:55]}  e5 {[%clk 0:02:59]} 8. d5 {[%clk 0:02:55]}  Ne7 {[%clk 0:02:59]} 9. Nge2 {[%clk 0:02:55]}  Nh5 {[%clk 0:02:58]} 10. g4 {[%clk 0:02:55]}  Nf4 {[%clk 0:02:53]} 11. Nxf4 {[%clk 0:02:51]}  exf4 {[%clk 0:02:53]} 12. Bxf4 {[%clk 0:02:52]}  f5 {[%clk 0:02:52]} 13. gxf5 {[%clk 0:02:45]}  gxf5 {[%clk 0:02:52]} 14. Bg5 {[%clk 0:02:41]}  fxe4 {[%clk 0:02:52]} 15. Bxe4 {[%clk 0:02:39]}  Bf5 {[%clk 0:02:47]} 16. Qc2 {[%clk 0:02:20]}  Qe8 {[%clk 0:02:37]} 17. O-O-O {[%clk 0:02:17]}  Bxe4 {[%clk 0:02:25]} 18. Nxe4 {[%clk 0:02:13]}  Nf5 {[%clk 0:02:26]} 19. Rhg1 {[%clk 0:01:57]}  Nd4 {[%clk 0:02:24]} 20. Rxd4 {[%clk 0:01:42]}  Bxd4 {[%clk 0:02:19]} 21. Bf6+ {[%clk 0:01:40]}  Kf7 {[%clk 0:02:11]} 22. Rg7# {[%clk 0:01:37]} 1-0


[Site "https://www.chess.com"]

[Event "Titled Tuesday Blitz May 30 Early 2023"]
[White "Belov, Alexei"]
[Black "Zaksaite, Salomeja"]
[WhiteFideId "4128206"]
[BlackFideId "12801496"]
[WhiteElo "2519"]
[BlackElo "2059"]
[Result "1-0"]
[Round "10"]
[TimeControl "180+2"]
[Date "2023.05.30"]
[WhiteClock "0:01:54"]
[BlackClock "0:00:00"]

1. e4 {[%clk 0:03:00]}  c5 {[%clk 0:02:59]} 2. Nf3 {[%clk 0:03:00]}  Nc6 {[%clk 0:02:57]} 3. d4 {[%clk 0:03:00]}  cxd4 {[%clk 0:02:57]} 4. Nxd4 {[%clk 0:03:01]}  Nf6 {[%clk 0:02:57]} 5. Nc3 {[%clk 0:03:00]}  e5 {[%clk 0:02:57]} 6. Ndb5 {[%clk 0:03:01]}  d6 {[%clk 0:02:57]} 7. Bg5 {[%clk 0:03:00]}  a6 {[%clk 0:02:57]} 8. Na3 {[%clk 0:03:00]}  b5 {[%clk 0:02:57]} 9. Nd5 {[%clk 0:03:00]}  Be7 {[%clk 0:02:56]} 10. Bxf6 {[%clk 0:03:00]}  Bxf6 {[%clk 0:02:57]} 11. c3 {[%clk 0:03:01]}  Rb8 {[%clk 0:02:56]} 12. Nc2 {[%clk 0:03:01]}  O-O {[%clk 0:02:55]} 13. h4 {[%clk 0:03:01]}  Be7 {[%clk 0:02:47]} 14. g3 {[%clk 0:03:00]}  Be6 {[%clk 0:02:47]} 15. Bg2 {[%clk 0:02:57]}  Qd7 {[%clk 0:02:40]} 16. Nce3 {[%clk 0:02:53]}  Bd8 {[%clk 0:02:38]} 17. O-O {[%clk 0:02:51]}  Bb6 {[%clk 0:02:38]} 18. Qd3 {[%clk 0:02:48]}  Bxe3 {[%clk 0:02:38]} 19. Nxe3 {[%clk 0:02:47]}  Rfd8 {[%clk 0:02:29]} 20. Rfd1 {[%clk 0:02:47]}  a5 {[%clk 0:02:28]} 21. a3 {[%clk 0:02:44]}  b4 {[%clk 0:02:28]} 22. axb4 {[%clk 0:02:43]}  axb4 {[%clk 0:02:28]} 23. Ra6 {[%clk 0:02:38]}  bxc3 {[%clk 0:02:25]} 24. bxc3 {[%clk 0:02:38]}  Rb3 {[%clk 0:01:52]} 25. Qc2 {[%clk 0:02:33]}  Qc8 {[%clk 0:01:39]} 26. Rda1 {[%clk 0:02:27]}  Qb7 {[%clk 0:01:22]} 27. Nf5 {[%clk 0:02:22]}  g6 {[%clk 0:01:08]} 28. Rxc6 {[%clk 0:02:19]}  gxf5 {[%clk 0:00:46]} 29. exf5 {[%clk 0:02:11]}  Rb2 {[%clk 0:00:15]} 30. Qc1 {[%clk 0:02:08]}  Bxf5 {[%clk 0:00:08]} 31. Qg5+ {[%clk 0:02:06]}  Bg6 {[%clk 0:00:04]} 32. Qxd8+ {[%clk 0:02:06]}  Kg7 {[%clk 0:00:00]} 33. Rxd6 {[%clk 0:01:54]} 1-0


[Site "https://www.chess.com"]

[Event "Titled Tuesday Blitz May 30 Early 2023"]
[White "MANOJ_MISHRA123"]
[Black "Andreev, Konstantin"]
[BlackFideId "24239305"]
[WhiteElo "2269"]
[BlackElo "2106"]
[Result "0-1"]
[Round "10"]
[TimeControl "180+2"]
[Date "2023.05.30"]
[WhiteClock "0:00:45"]
[BlackClock "0:01:51"]

1. d4 {[%clk 0:03:00]}  Nf6 {[%clk 0:02:56]} 2. Bg5 {[%clk 0:02:58]}  e6 {[%clk 0:02:57]} 3. e3 {[%clk 0:02:57]}  h6 {[%clk 0:02:57]} 4. Bh4 {[%clk 0:02:57]}  d5 {[%clk 0:02:57]} 5. Bd3 {[%clk 0:02:56]}  Be7 {[%clk 0:02:57]} 6. Nd2 {[%clk 0:02:56]}  b6 {[%clk 0:02:57]} 7. f4 {[%clk 0:02:54]}  Bb7 {[%clk 0:02:57]} 8. Ngf3 {[%clk 0:02:54]}  Ne4 {[%clk 0:02:54]} 9. Bxe7 {[%clk 0:02:45]}  Qxe7 {[%clk 0:02:55]} 10. Ne5 {[%clk 0:02:42]}  Nd7 {[%clk 0:02:45]} 11. Nxe4 {[%clk 0:02:36]}  dxe4 {[%clk 0:02:45]} 12. Bb5 {[%clk 0:02:36]}  Qb4+ {[%clk 0:02:40]} 13. c3 {[%clk 0:02:28]}  Qxb5 {[%clk 0:02:40]} 14. a4 {[%clk 0:02:22]}  Qd5 {[%clk 0:02:30]} 15. c4 {[%clk 0:02:20]}  Qd6 {[%clk 0:02:30]} 16. O-O {[%clk 0:02:19]}  O-O {[%clk 0:02:27]} 17. b4 {[%clk 0:02:12]}  c5 {[%clk 0:02:23]} 18. bxc5 {[%clk 0:01:56]}  bxc5 {[%clk 0:02:21]} 19. Rb1 {[%clk 0:01:56]}  Ba6 {[%clk 0:02:19]} 20. dxc5 {[%clk 0:01:26]}  Qxd1 {[%clk 0:02:16]} 21. Rfxd1 {[%clk 0:01:27]}  Nxe5 {[%clk 0:02:16]} 22. fxe5 {[%clk 0:01:28]}  Rac8 {[%clk 0:02:16]} 23. Rd7 {[%clk 0:01:25]}  Rxc5 {[%clk 0:02:07]} 24. Rxa7 {[%clk 0:01:24]}  Bxc4 {[%clk 0:02:08]} 25. a5 {[%clk 0:01:22]}  Bd3 {[%clk 0:02:07]} 26. Rbb7 {[%clk 0:01:19]}  h5 {[%clk 0:02:05]} 27. Kf2 {[%clk 0:01:15]}  h4 {[%clk 0:02:05]} 28. Rc7 {[%clk 0:01:12]}  Rc8 {[%clk 0:02:03]} 29. Rxc5 {[%clk 0:00:49]}  Rxc5 {[%clk 0:01:58]} 30. a6 {[%clk 0:00:48]}  Rc2+ {[%clk 0:01:51]} 31. Kg1 {[%clk 0:00:48]}  Rc1+ {[%clk 0:01:50]} 32. Kf2 {[%clk 0:00:45]}  Rf1# {[%clk 0:01:51]} 0-1


[Site "https://www.chess.com"]

[Event "Titled Tuesday Blitz May 30 Early 2023"]
[White "Makhmudov, Shukhrat"]
[Black "Brown, Raehanna"]
[WhiteFideId "14200775"]
[BlackFideId "7402740"]
[WhiteElo "2135"]
[BlackElo "1655"]
[Result "1-0"]
[Round "10"]
[TimeControl "180+2"]
[Date "2023.05.30"]
[WhiteClock "0:00:53"]
[BlackClock "0:00:10"]

1. e4 {[%clk 0:03:00]}  c5 {[%clk 0:02:59]} 2. Nf3 {[%clk 0:03:01]}  Nc6 {[%clk 0:03:00]} 3. d4 {[%clk 0:03:01]}  cxd4 {[%clk 0:03:00]} 4. Nxd4 {[%clk 0:03:02]}  Nf6 {[%clk 0:03:01]} 5. Nc3 {[%clk 0:03:02]}  g6 {[%clk 0:03:01]} 6. Nxc6 {[%clk 0:03:02]}  dxc6 {[%clk 0:03:00]} 7. Qxd8+ {[%clk 0:03:01]}  Kxd8 {[%clk 0:03:01]} 8. f3 {[%clk 0:03:00]}  e5 {[%clk 0:02:58]} 9. Bg5 {[%clk 0:03:00]}  Be7 {[%clk 0:02:56]} 10. Bc4 {[%clk 0:02:59]}  Be6 {[%clk 0:02:49]} 11. Bxe6 {[%clk 0:02:59]}  fxe6 {[%clk 0:02:50]} 12. Bh4 {[%clk 0:02:59]}  Kc7 {[%clk 0:02:43]} 13. O-O-O {[%clk 0:02:57]}  Rad8 {[%clk 0:02:42]} 14. a3 {[%clk 0:02:51]}  Rhf8 {[%clk 0:02:30]} 15. Nb1 {[%clk 0:02:49]}  Bc5 {[%clk 0:02:28]} 16. Rde1 {[%clk 0:02:37]}  h6 {[%clk 0:02:23]} 17. Nd2 {[%clk 0:02:36]}  g5 {[%clk 0:02:21]} 18. Bg3 {[%clk 0:02:36]}  Nd7 {[%clk 0:02:08]} 19. Nc4 {[%clk 0:02:33]}  Rf4 {[%clk 0:01:57]} 20. Bxf4 {[%clk 0:02:14]}  exf4 {[%clk 0:01:58]} 21. Rd1 {[%clk 0:01:59]}  b5 {[%clk 0:01:53]} 22. Na5 {[%clk 0:01:57]}  Bb6 {[%clk 0:01:38]} 23. Nb3 {[%clk 0:01:54]}  e5 {[%clk 0:01:25]} 24. h4 {[%clk 0:01:49]}  a5 {[%clk 0:01:10]} 25. hxg5 {[%clk 0:01:49]}  hxg5 {[%clk 0:01:10]} 26. Rh6 {[%clk 0:01:46]}  a4 {[%clk 0:01:10]} 27. Na1 {[%clk 0:01:38]}  Bd4 {[%clk 0:00:53]} 28. c3 {[%clk 0:01:38]}  Be3+ {[%clk 0:00:52]} 29. Kb1 {[%clk 0:01:38]}  Nf8 {[%clk 0:00:34]} 30. Rxd8 {[%clk 0:01:37]}  Kxd8 {[%clk 0:00:35]} 31. Rxc6 {[%clk 0:01:37]}  Kd7 {[%clk 0:00:33]} 32. Rh6 {[%clk 0:01:31]}  Ne6 {[%clk 0:00:31]} 33. Nc2 {[%clk 0:01:31]}  Bf2 {[%clk 0:00:19]} 34. Nb4 {[%clk 0:01:30]}  Nc5 {[%clk 0:00:17]} 35. Rg6 {[%clk 0:01:11]}  Bh4 {[%clk 0:00:16]} 36. Rb6 {[%clk 0:01:08]}  g4 {[%clk 0:00:14]} 37. Rxb5 {[%clk 0:01:08]}  Kd6 {[%clk 0:00:14]} 38. Rb6+ {[%clk 0:01:07]}  Kd7 {[%clk 0:00:14]} 39. Rh6 {[%clk 0:01:03]}  gxf3 {[%clk 0:00:14]} 40. gxf3 {[%clk 0:01:03]}  Bg3 {[%clk 0:00:14]} 41. Nd5 {[%clk 0:00:59]}  Nd3 {[%clk 0:00:11]} 42. Nb6+ {[%clk 0:00:59]}  Kc7 {[%clk 0:00:11]} 43. Nc4 {[%clk 0:00:57]}  Kd7 {[%clk 0:00:09]} 44. Kc2 {[%clk 0:00:57]}  Ne1+ {[%clk 0:00:08]} 45. Kd2 {[%clk 0:00:57]}  Nxf3+ {[%clk 0:00:09]} 46. Ke2 {[%clk 0:00:57]}  Ng5 {[%clk 0:00:07]} 47. Nxe5+ {[%clk 0:00:57]}  Ke7 {[%clk 0:00:06]} 48. Nf3 {[%clk 0:00:56]}  Nxe4 {[%clk 0:00:06]} 49. Ra6 {[%clk 0:00:53]}  Nc5 {[%clk 0:00:06]} 50. Rc6 {[%clk 0:00:52]}  Nb3 {[%clk 0:00:06]} 51. Nd4 {[%clk 0:00:51]}  Nc1+ {[%clk 0:00:05]} 52. Kd2 {[%clk 0:00:50]}  Nb3+ {[%clk 0:00:04]} 53. Nxb3 {[%clk 0:00:50]}  axb3 {[%clk 0:00:05]} 54. Ke2 {[%clk 0:00:50]}  Kd7 {[%clk 0:00:05]} 55. Rb6 {[%clk 0:00:51]}  Kc7 {[%clk 0:00:04]} 56. Rxb3 {[%clk 0:00:51]}  Kc6 {[%clk 0:00:04]} 57. Rb4 {[%clk 0:00:51]}  Kc5 {[%clk 0:00:04]} 58. Kf3 {[%clk 0:00:51]}  Kc6 {[%clk 0:00:02]} 59. Rxf4 {[%clk 0:00:51]}  Bxf4 {[%clk 0:00:03]} 60. Kxf4 {[%clk 0:00:52]}  Kb6 {[%clk 0:00:04]} 61. b3 {[%clk 0:00:51]}  Ka7 {[%clk 0:00:05]} 62. Ke5 {[%clk 0:00:52]}  Kb7 {[%clk 0:00:05]} 63. Kd6 {[%clk 0:00:52]}  Kc8 {[%clk 0:00:06]} 64. Kc6 {[%clk 0:00:52]}  Kb8 {[%clk 0:00:06]} 65. c4 {[%clk 0:00:53]}  Kc8 {[%clk 0:00:06]} 66. c5 {[%clk 0:00:54]}  Kb8 {[%clk 0:00:07]} 67. Kd7 {[%clk 0:00:55]}  Ka7 {[%clk 0:00:07]} 68. c6 {[%clk 0:00:55]}  Kb6 {[%clk 0:00:07]} 69. c7 {[%clk 0:00:56]}  Ka7 {[%clk 0:00:08]} 70. c8=Q {[%clk 0:00:56]}  Kb6 {[%clk 0:00:08]} 71. Qc6+ {[%clk 0:00:56]}  Ka5 {[%clk 0:00:09]} 72. Qc4 {[%clk 0:00:53]}  Kb6 {[%clk 0:00:09]} 73. Qb4+ {[%clk 0:00:53]}  Ka7 {[%clk 0:00:09]} 74. Kc7 {[%clk 0:00:54]}  Ka6 {[%clk 0:00:10]} 75. Qb6# {[%clk 0:00:53]} 1-0


[Site "https://www.chess.com"]